[Event "Romanian Superleague 2022"]
[Site "Oradea"]
[Date "2022.09.24"]
[Round "4.9"]
[White "Mendonca, Leon Luke"]
[Black "Szabo, Gergely-Andras-Gyula"]
[Result "1/2-1/2"]
[ECO "E14"]
[WhiteElo "2558"]
[BlackElo "2512"]
[Annotator "TA"]
[PlyCount "50"]
[EventDate "2022.09.21"]
[EventType "team-tourn"]
[EventCountry "ROU"]
[SourceTitle "playchess.com"]
[Source "ChessBase"]
[SourceQuality "1"]
[TimeControl "40/5400+30:1800+30"]

{[%evp 12,50,25,22,19,20,42,39,59,37,53,31,42,39,47,30,41,20,23,11,47,-7,27,15,15,6,23,0,2,0,44,1,2,0,0,0,0,0,0,0,0]} 1. d4 {[%emt 0:00:06]} Nf6 {[%emt 0:02:00]} 2. c4 {[%emt 0:00:13]} e6 {[%emt 0:00:04]} 3. Nf3 {[%emt 0:00:13]} Bb4+ {[%emt 0:00:07]} 4. Nbd2 {[%emt 0:00:35]} b6 {[%emt 0:00:07]} 5. a3 {[%emt 0:00:24]} Bxd2+ {[%emt 0:00:06]} 6. Qxd2 {[%emt 0:00:11]} Bb7 {[%emt 0:00:09]} 7. e3 {[%emt 0:00:22]} d5 {[%emt 0:03:08] E14: Queen's Indian: Classical Variation (4 e3).} 8. b4 {[%emt 0:06:41]} dxc4 {[%emt 0:08:52]} 9. Bxc4 {[%emt 0:00:17]} O-O {[%emt 0:00:18][%cal Oc7c5] White is slightly better.} 10. O-O {[%emt 0:02:55]} Nbd7 {[%emt 0:03:59][%cal Bb8d7,Bd7c5,Bc5b7,Bb7d6][%mdl 32]} 11. Bb2 {[%emt 0:01:18]} Qe7 {[%emt 0:03:25] [#]} 12. Rac1 $146 {[%emt 0:08:04]} ({Predecessor:} 12. Rfd1 Rfd8 13. Qe2 a5 14. b5 h6 15. a4 Nd5 16. e4 Nf4 17. Qe3 Ng6 18. Ba3 {1-0 (33) Galaktionov,A (2315)-Peng,D (2287) Chess.com INT 2020}) 12... Rfd8 {[%emt 0:03:35]} 13. Be2 {[%emt 0:15:47]} c5 {[%emt 0:07:17]} 14. bxc5 {[%emt 0:01:24]} Nxc5 {[%emt 0:02:06] [#] Hoping for ...Nb3.} 15. Qc2 {[%emt 0:07:31] Inhibits Nb3.} Be4 {[%emt 0:22:12]} 16. Qc4 {[%emt 0:03:01]} (16. Qd1 $14) 16... Nb7 {[%emt 0:00:22]} (16... Bd5 $5 {[%cal Rd5c4]} 17. Qb4 a5 $11) 17. Nd2 {[%emt 0:10:19]} Nd6 {[%emt 0:02:55]} 18. Qa4 {[%emt 0:08:45]} Bb7 {[%emt 0:02:36]} 19. Rc2 {[%emt 0:19:29]} Nfe4 {[%emt 0:02:25]} 20. Nf3 {[%emt 0:06:59]} Rdc8 {[%emt 0:09:34]} 21. Rfc1 {[%emt 0:01:42]} Rxc2 {[%emt 0:01:05] The position is equal.} 22. Rxc2 {[%emt 0:00:22]} Bd5 {[%emt 0:05:07]} 23. Qa6 {[%emt 0:03:55]} Bb7 {[%emt 0:00:40]} 24. Qa4 {[%emt 0:00:13]} Bd5 {[%emt 0:00:04]} 25. Qa6 {[%emt 0:00:30]} Bb7 {[%emt 0:20:47] Weighted Error Value: White=0.15 (very precise) /Black=0.10 (very precise)} 1/2-1/2

[Event "Romanian Superleague 2022"]
[Site "Oradea"]
[Date "2022.09.24"]
[Round "4.10"]
[White "Nevednichy, Vladislav"]
[Black "Ghimpu, Samuel-Timotei"]
[Result "0-1"]
[ECO "B12"]
[WhiteElo "2472"]
[BlackElo "2434"]
[Annotator "TA"]
[PlyCount "71"]
[EventDate "2022.09.21"]
[EventType "team-tourn"]
[EventCountry "ROU"]
[SourceTitle "playchess.com"]
[Source "ChessBase"]
[SourceQuality "1"]
[TimeControl "40/5400+30:1800+30"]

{[%evp 9,71,20,25,24,19,7,18,16,25,12,18,27,29,24,30,34,54,39,70,14,64,66,66,66,65,56,83,61,101,93,101,95,85,72,115,107,118,116,121,114,110,109,141,145,126,15,6,0,0,0,0,0,-8,-45,-45,-71,-8,-8,120,-41,201,-154,-162,-265]} 1. e4 {[%emt 0:00:03]} c6 {[%emt 0:00:25]} 2. d4 {[%emt 0:00:14]} d5 {[%emt 0:00:13]} 3. e5 {[%emt 0:00:20]} Bf5 {[%emt 0:00:14]} 4. Nd2 {[%emt 0:00:39]} e6 {[%emt 0:01:55]} 5. Nb3 {[%emt 0:00:08]} a6 {[%emt 0:00:06][%cal Oc6c5]} 6. Nf3 {[%emt 0:01:01] B12: Caro-Kann: Advance Variation.} c5 {[%emt 0:00:45]} 7. dxc5 {[%emt 0:00:11]} Bxc5 {[%emt 0:00:08]} 8. Nxc5 {[%emt 0:01:20] The position is equal.} Qa5+ {[%emt 0:00:06]} 9. c3 {[%emt 0:00:08]} Qxc5 {[%emt 0:00:02]} 10. Nd4 {[%emt 0:01:20]} Ne7 {[%emt 0:01:06]} 11. Qa4+ {[%emt 0:13:33]} Nd7 {[%emt 0:02:52] [#]} 12. Be2 $146 {[%emt 0:14:01][%mdl 2048] White is more active.} ({Predecessor:} 12. f4 Rc8 13. Be3 Qc7 14. Be2 O-O 15. O-O Be4 16. Qd1 Nb6 17. Bf2 Nc4 18. Qc1 {1-0 (32) Bernadskiy,V (2592)-Makhnev,D (2513) Tashkent 2021}) 12... Rd8 {[%emt 0:17:43]} 13. Bg5 {[%emt 0:05:06]} h6 {[%emt 0:05:09]} 14. Bh4 {[%emt 0:00:53]} (14. Nxf5 $14 exf5 15. Be3) 14... Qc7 {[%emt 0:36:09]} (14... Rc8 $11) 15. Nxf5 $14 {[%emt 0:05:14]} exf5 {[%emt 0:01:38]} 16. f4 {[%emt 0:07:41] Against g5} Qb6 {[%emt 0:10:11]} 17. O-O-O {[%emt 0:19:24] Hoping for Bf3.} g5 {[%emt 0:02:50]} 18. Bg3 {[%emt 0:02:24]} O-O {[%emt 0:04:40]} 19. Qd4 {[%emt 0:04:09]} Qxd4 {[%emt 0:09:06]} 20. cxd4 {[%emt 0:01:25]} ({Reject} 20. Rxd4 Nc5 $11) 20... f6 {[%emt 0:00:16]} 21. h4 {[%emt 0:04:13]} g4 {[%emt 0:03:58]} 22. h5 {[%emt 0:00:03]} Kf7 {[%emt 0:00:39][%cal Bg8f7,Bf7e6,Be6d6,Bd6c7][%mdl 32]} 23. Rhf1 {[%emt 0:02:49]} Ke6 {[%emt 0:00:31]} 24. Bh4 {[%emt 0:00:59]} Nc6 {[%emt 0:00:50]} 25. Kb1 {[%emt 0:01:45]} Rg8 {[%emt 0:00:20]} 26. Rfe1 {[%emt 0:01:48]} Rdf8 {[%emt 0:00:34][%cal Rf6e5]} 27. exf6 {[%emt 0:02:55]} (27. Rd2 $16) 27... Kd6 $11 {[%emt 0:00:15]} 28. Bd3 {[%emt 0:00:56]} Nxf6 {[%emt 0:00:25]} 29. Bxf5 {[%emt 0:00:13] [#] aiming for Re6+.} Nxh5 {[%emt 0:00:06]} 30. Re6+ {[%emt 0:06:23]} Kc7 {[%emt 0:00:40]} 31. Bc2 {[%emt 0:01:26] f5 is the strong threat. This bishop pair is nice.} (31. Bh7 $5 {[%cal Rh7g8]} Rg7 32. Rxh6 Nxf4 33. Bg3 $15) 31... Nxf4 {[%emt 0:00:32]} 32. Rxh6 {[%emt 0:01:07]} g3 {[%emt 0:00:55]} (32... Nxg2 $17 33. Bg3+ Kb6) 33. Rf1 {[%emt 0:01:32]} Nxd4 {[%emt 0:00:59]} (33... Nxg2 $11 {remains equal.} 34. Bxg3+ Kc8 35. Rxf8+ Rxf8) 34. Bh7 $2 {[%emt 0:00:10]} ({White must play} 34. Be7 $16) 34... Nfe2 $2 {[%emt 0:00:12] [#]} (34... Rg4 $15 {stays ahead.}) 35. Rd1 $2 {[%emt 0:00:26]} (35. Bf6 $1 $18 Rg5 36. Rhh1) 35... Rh8 $17 {[%emt 0:00:32] Strongly threatening ...Nf5.} 36. Bxg3+ {[%emt 0:02:31] Weighted Error Value: White=0.35/Black=0.28 (precise)} (36. Bg5 $142) 0-1

[Event "Romanian Superleague 2022"]
[Site "Oradea"]
[Date "2022.09.24"]
[Round "4.11"]
[White "David, Alexandru-Vasile"]
[Black "Stoleriu, George"]
[Result "1/2-1/2"]
[ECO "E90"]
[WhiteElo "2417"]
[BlackElo "2392"]
[Annotator "TA"]
[PlyCount "54"]
[EventDate "2022.09.21"]
[EventType "team-tourn"]
[EventCountry "ROU"]
[SourceTitle "playchess.com"]
[Source "ChessBase"]
[SourceQuality "1"]
[TimeControl "40/5400+30:1800+30"]

{[%evp 13,54,32,46,32,34,17,26,-24,-11,-17,0,-41,-44,-48,-51,-37,-44,-112,-109,-132,-14,-30,25,15,24,29,34,16,28,44,41,14,17,1,10,0,95,95,102,0,42,0,49]} 1. d4 {[%emt 1:31:00]} Nf6 {[%emt 0:01:28]} 2. c4 {[%emt 0:00:00]} g6 {[%emt 0:00:06]} 3. Nc3 {[%emt 0:00:00]} Bg7 {[%emt 0:00:08]} 4. e4 {[%emt 0:00:00]} d6 {[%emt 0:00:06]} 5. Nf3 {[%emt 0:00:00]} O-O {[%emt 0:00:06]} 6. Bd3 {[%emt 0:00:00]} e5 {[%emt 0:09:12]} 7. d5 {[%emt 0:00:00]} a5 $1 {[%emt 0:00:26][%cal Ba7a5,Ba5a4][%mdl 32] The main line 7...a5 scores better than 7...Nbd7.} 8. Bg5 {[%emt 0:00:00] E90: King's Indian: Classical: Early deviations and 6 h3.} h6 {[%emt 0:01:12]} 9. Bh4 {[%emt 0:00:00]} Na6 {[%emt 0:01:10] [#]} 10. Qd2 $146 {[%emt 0:00:00]} (10. Nd2 $142) ({Predecessor:} 10. Nd2 Qe8 11. Be2 Bd7 12. O-O Nh7 13. f3 h5 14. Bf2 Bh6 15. Rb1 Qe7 16. Nb3 {½-½ (40) Poluektov,Y (2372)-Matjushin,G (2477) Zaporozhye 2011}) 10... Nc5 $11 {[%emt 0:10:22]} 11. Bc2 {[%emt 0:00:00]} Bd7 {[%emt 0:10:42]} 12. O-O-O {[%emt 0:00:00]} a4 {[%emt 0:08:36]} 13. h3 {[%emt 0:00:00]} g5 {[%emt 0:17:09][%cal Bg6g5,Bg5g4][%mdl 32]} 14. Bg3 {[%emt 0:00:00]} Nh5 {[%emt 0:02:02]} 15. h4 {[%emt 0:00:00]} (15. Bh2 $15) 15... g4 $17 {[%emt 0:01:10]} 16. Nh2 {[%emt 0:00:00][%cal Bf3h2,Bh2f1,Bf1e3][%mdl 32]} Qf6 {[%emt 0:01:35]} (16... Nxg3 $17 17. fxg3 h5) 17. Nf1 $1 $11 {[%emt 0:00:00]} Nf4 {[%emt 0:11:12]} (17... Qg6 $142) 18. Ne3 {[%emt 0:00:00]} h5 {[%emt 0:00:15]} 19. Kb1 {[%emt 0:00:00]} Bh6 {[%emt 0:00:45][%cal Of4g2]} 20. Qe1 {[%emt 0:00:00]} Kh8 {[%emt 0:00:49]} 21. Rg1 {[%emt 0:00:00]} Ra6 {[%emt 0:04:42]} 22. a3 {[%emt 0:00:00]} Rb6 {[%emt 0:01:20]} 23. Ka2 {[%emt 0:00:00]} Rg8 {[%emt 0:05:53]} 24. Rf1 {[%emt 0:00:00]} Ra6 {[%emt 0:05:19]} (24... Nb3 $11 {remains equal.}) 25. Nb5 $16 {[%emt 0:00:00]} Rb6 {[%emt 0:02:40]} 26. Nc3 {[%emt 0:00:00]} (26. Nxc7 $16 {[%cal Oc7b5]} Nb3 27. Nb5) 26... Ra6 $14 {[%emt 0:00:01]} 27. Nb5 {[%emt 0:00:00]} Rb6 $1 {[%emt 0:00:04] Weighted Error Value: White=0.18 (very precise) /Black=0.22 (precise)} 1/2-1/2

[Event "Romanian Superleague 2022"]
[Site "Oradea"]
[Date "2022.09.24"]
[Round "4.12"]
[White "Danilov, Vladimir"]
[Black "Talu, Mircea"]
[Result "1-0"]
[ECO "A35"]
[WhiteElo "2378"]
[BlackElo "2331"]
[Annotator "TA"]
[PlyCount "87"]
[EventDate "2022.09.21"]
[EventType "team-tourn"]
[EventCountry "ROU"]
[SourceTitle "playchess.com"]
[Source "ChessBase"]
[SourceQuality "1"]
[TimeControl "40/5400+30:1800+30"]

{[%evp 17,87,17,6,17,31,3,21,29,25,8,20,0,0,0,10,0,12,11,7,0,0,0,19,6,31,34,42,16,25,23,25,0,29,29,27,26,27,29,74,65,172,173,242,215,219,191,195,199,380,369,370,360,358,212,207,210,210,190,214,196,257,243,491,473,520,478,1051,939,29978,29979,6395,5385]} 1. Nf3 {[%emt 0:00:03]} c5 {[%emt 0:00:49]} 2. c4 {[%emt 0:00:56]} g6 {[%emt 0:03:17]} 3. Nc3 {[%emt 0:01:11]} Bg7 {[%emt 0:01:57]} 4. e3 {[%emt 0:04:19]} Nf6 {[%emt 0:01:24]} 5. Be2 {[%emt 0:02:01]} O-O {[%emt 0:00:39]} 6. O-O {[%emt 0:00:08]} b6 {[%emt 0:10:01]} 7. d4 {[%emt 0:00:52]} cxd4 {[%emt 0:00:09]} 8. Nxd4 {[%emt 0:00:28][%cal Bf3d4,Bd4e2,Be2f4][%mdl 32]} Bb7 {[%emt 0:02:39]} 9. Bf3 {[%emt 0:02:25]} Nc6 {[%emt 0:20:30]} 10. b3 {[%emt 0:04:24] A35: Symmetrical English: 2 Nc3 Nc6 3 Nf3.} Qb8 {[%emt 0:01:20]} 11. Bb2 {[%emt 0:03:17]} (11. Ba3 $5 {[%cal Rd4c6]}) 11... Ne5 {[%emt 0:04:24]} 12. Bxb7 {[%emt 0:06:05] The position is equal.} Qxb7 {[%emt 0:00:26]} 13. Nde2 {[%emt 0:04:33] [#]} a6 $146 {[%emt 0:07:24]} ({Predecessor:} 13... Rfd8 14. Nf4 d6 15. Qe2 a6 16. Rfd1 Rab8 17. a4 Nfd7 18. Rab1 Nc5 19. Ba1 Rbc8 {1-0 (47) Gelashvili,T (2604)-Morchiashvili,B (2415) Athens 2007}) 14. a4 {[%emt 0:02:03] Prevents b5.} Rfd8 {[%emt 0:04:28]} 15. Nf4 {[%emt 0:03:55] Against d5} e6 {[%emt 0:01:15]} 16. Ra2 {[%emt 0:02:12][%cal Ba1a2,Ba2d2,Bd2d3][%mdl 32]} Rac8 {[%emt 0:05:26]} 17. Ba1 {[%emt 0:00:58]} (17. Ncd5 {is more complex.} d6 18. Nxf6+ Bxf6 19. Qa1) 17... Nc6 {[%emt 0:05:12]} 18. Rd2 {[%emt 0:02:57]} Na5 {[%emt 0:00:35]} 19. Qb1 {[%emt 0:03:15]} Rc7 {[%emt 0:04:03]} 20. Rfd1 {[%emt 0:00:08]} Rdc8 {[%emt 0:00:36]} 21. Nfe2 {[%emt 0:05:09]} Ne8 {[%emt 0:02:03]} 22. Rd3 {[%emt 0:02:16]} d6 {[%emt 0:03:01]} 23. f3 {[%emt 0:02:21]} Qb8 {[%emt 0:06:08]} 24. Ne4 {[%emt 0:04:04]} Bxa1 {[%emt 0:04:23]} 25. Qxa1 {[%emt 0:01:32]} Nb7 {[%emt 0:02:34][%cal Ob6b5]} 26. Nf6+ {[%emt 0:03:41]} Nxf6 {[%emt 0:00:08]} 27. Qxf6 {[%emt 0:00:03]} Re8 {[%emt 0:01:24]} 28. Ng3 {[%emt 0:01:20] White has more active pieces.} h6 {[%emt 0:07:12] Black is now going downhill.} ({Better is} 28... b5 $14) 29. Ne4 $18 {[%emt 0:02:02]} Rc6 {[%emt 0:00:50]} (29... e5 $142 30. Qh4 (30. Nxd6 Re6 $18) 30... Kg7 31. Nxd6 Re6) 30. Qf4 {[%emt 0:02:48]} Kg7 {[%emt 0:00:07]} 31. Nxd6 {[%emt 0:00:33]} Nxd6 {[%emt 0:00:52]} 32. Rxd6 {[%emt 0:00:02]} Rc5 {[%emt 0:00:39] [#]} (32... g5 {was called for.} 33. Qd4+ e5) 33. b4 {[%emt 0:00:27][%cal Bb3b4,Bb4c5,Bc5c6][%mdl 32]} Rcc8 {[%emt 0:00:25]} 34. Qd4+ {[%emt 0:01:23]} e5 {[%emt 0:00:07]} 35. Qd5 {[%emt 0:00:02]} ({Weaker is} 35. Qxb6 Qxb6 36. Rxb6 Rxc4 $16) (35. Qh4 $142) 35... Re7 {[%emt 0:00:49]} 36. c5 {[%emt 0:06:52]} bxc5 {[%emt 0:00:06]} 37. bxc5 {[%emt 0:00:04]} Qb4 {[%emt 0:00:43]} 38. c6 {[%emt 0:01:57] aiming for Rd7.} ({Don't play} 38. Rxa6 $6 Qxc5 39. Qxc5 Rxc5 $14) 38... Qxa4 {[%emt 0:00:17]} (38... Qc3 {keeps fighting.} 39. Kf2 e4 40. fxe4 Qc2+ 41. Kf3 Rce8) 39. Rd7 {[%emt 0:00:22]} Qa3 {[%emt 0:00:46]} (39... Rxd7 40. cxd7 Rd8 41. Qxe5+ Kh7) 40. e4 {[%emt 0:00:00]} a5 {[%emt 0:00:00]} 41. h3 {[%emt 0:07:30] And now Kh2 would win.} Kh7 {[%emt 0:19:29]} (41... Rxd7 $142 42. Qxe5+ Kg8 43. cxd7 Rd8) 42. Kh2 {[%emt 0:00:48][%cal Od1a1] Threatening mate with Ra1!} Qb4 {[%emt 0:07:15] [#]} 43. Rb1 $3 {[%emt 0:00:54][%mdl 512]} Qa3 {[%emt 0:01:12]} 44. Rb3 {[%emt 0:00:39] Weighted Error Value: White=0.13 (very precise) /Black=0.52} 1-0

[Event "Romanian Superleague 2022"]
[Site "Oradea"]
[Date "2022.09.24"]
[Round "4.13"]
[White "Marin, Mihail"]
[Black "Kozak, Adam"]
[Result "1/2-1/2"]
[ECO "A07"]
[WhiteElo "2457"]
[BlackElo "2516"]
[Annotator "TA"]
[PlyCount "63"]
[EventDate "2022.09.21"]
[EventType "team-tourn"]
[EventCountry "ROU"]
[SourceTitle "playchess.com"]
[Source "ChessBase"]
[SourceQuality "1"]
[TimeControl "40/5400+30:1800+30"]

{[%evp 9,63,-12,-6,-6,-10,-13,-11,-20,-19,-14,-14,-23,-22,-18,-6,-10,-8,-8,-6,-9,-7,-11,-5,-5,0,0,0,0,10,9,10,5,9,10,14,2,9,0,0,0,12,0,0,0,0,0,0,0,0,0,0,0,0,0,0,0]} 1. Nf3 {[%emt 0:00:04]} d5 {[%emt 0:01:16]} 2. g3 {[%emt 0:00:07]} c6 {[%emt 0:02:18]} 3. Bg2 {[%emt 0:00:07]} Bg4 {[%emt 0:00:10]} 4. O-O {[%emt 0:02:06]} Nd7 {[%emt 0:00:15][%cal Bb8d7,Bd7e5,Be5f3][%mdl 32]} 5. c4 {[%emt 0:04:18]} Bxf3 {[%emt 0:06:51]} 6. Bxf3 {[%emt 0:02:28] A07: Réti Opening: New York and Capablanca Systems.} Ne5 {[%emt 0:00:35]} 7. Qb3 {[%emt 0:00:12]} Nxf3+ {[%emt 0:05:35]} 8. exf3 {[%emt 0:02:42]} Qd7 {[%emt 0:06:06]} 9. cxd5 {[%emt 0:03:26]} cxd5 {[%emt 0:00:11]} 10. d3 {[%emt 0:02:37]} e6 {[%emt 0:02:19]} 11. f4 {[%emt 0:01:00] [#] The position is equal.} Bd6 $146 {[%emt 0:03:32]} ({Predecessor:} 11... Ne7 12. Nd2 Nf5 13. Nf3 Bd6 14. Be3 O-O 15. Rac1 Nxe3 16. fxe3 Rac8 17. Kg2 Bc5 18. Ne5 Qe7 19. d4 Bd6 20. Rc3 Bxe5 21. dxe5 Rc5 22. Rfc1 {½-½ (22) Bareev,E (2670)-Sadler,M (2515) Hastings 1992}) 12. Nd2 {[%emt 0:05:37]} Ne7 {[%emt 0:02:05]} 13. Nf3 {[%emt 0:00:07]} O-O {[%emt 0:01:31]} 14. Bd2 {[%emt 0:00:48]} Rac8 {[%emt 0:07:45]} 15. Rac1 {[%emt 0:01:32]} Rxc1 {[%emt 0:15:15]} 16. Rxc1 {[%emt 0:00:16]} Rc8 {[%emt 0:00:39]} 17. Rxc8+ {[%emt 0:01:28]} Nxc8 {[%emt 0:01:12]} 18. f5 {[%emt 0:10:35]} Ne7 {[%emt 0:02:48]} 19. fxe6 {[%emt 0:04:26]} fxe6 {[%emt 0:00:37]} 20. Bb4 {[%emt 0:00:15]} Bxb4 {[%emt 0:02:18]} 21. Qxb4 $11 {[%emt 0:00:11][%mdl 4096] Endgame KQN-KQN} Nc6 {[%emt 0:00:12]} 22. Qg4 {[%emt 0:03:48]} h6 {[%emt 0:04:59]} 23. Nd4 {[%emt 0:15:20]} Nxd4 {[%emt 0:02:16]} 24. Qxd4 {[%emt 0:03:28] KQ-KQ} Qc7 {[%emt 0:07:53]} 25. Qxa7 {[%emt 0:10:34] Kg2 is the strong threat.} Qc1+ {[%emt 0:00:18]} 26. Kg2 {[%emt 0:00:04]} Qxb2 {[%emt 0:00:08]} 27. Qe3 {[%emt 0:01:42]} Kf7 {[%emt 0:03:51]} 28. Qf4+ {[%emt 0:01:39]} Ke7 {[%emt 0:01:25]} 29. Qc7+ {[%emt 0:00:16]} Kf6 {[%emt 0:00:30]} 30. Qf4+ {[%emt 0:00:16]} Ke7 {[%emt 0:00:58]} 31. Qc7+ {[%emt 0:01:40]} Kf6 {[%emt 0:00:38]} 32. Qf4+ {[%emt 0:23:21] Not much happened in this game.  Weighted Error Value: White=0.02 (flawless) /Black=0.02 (flawless)} 1/2-1/2

[Event "Romanian Superleague 2022"]
[Site "Oradea"]
[Date "2022.09.24"]
[Round "4.14"]
[White "Petkov, Momchil"]
[Black "Miron, Lucian-Costin"]
[Result "1/2-1/2"]
[ECO "E00"]
[WhiteElo "2511"]
[BlackElo "2498"]
[Annotator "TA"]
[PlyCount "119"]
[EventDate "2022.09.21"]
[EventType "team-tourn"]
[EventCountry "ROU"]
[SourceTitle "playchess.com"]
[Source "ChessBase"]
[SourceQuality "1"]
[TimeControl "40/5400+30:1800+30"]

{[%evp 12,119,34,36,61,27,31,28,34,44,28,34,49,16,17,4,45,34,42,15,29,14,20,10,11,12,19,0,-13,-34,-34,-37,-43,-47,14,23,84,88,89,100,95,17,17,17,17,17,20,18,18,21,25,20,22,0,8,8,8,2,8,5,5,0,0,0,3,0,0,0,2,0,0,0,0,0,0,0,11,11,15,15,15,15,37,37,37,37,37,37,37,37,68,37,37,37,37,37,147,147,147,147,147,147,147,147,147,147,147,147,147,-8]} 1. d4 {[%emt 0:00:13]} Nf6 {[%emt 0:00:05]} 2. c4 {[%emt 0:00:25]} e6 {[%emt 0:00:05]} 3. g3 {[%emt 0:00:23]} Bb4+ {[%emt 0:00:05]} 4. Bd2 {[%emt 0:00:17]} Qe7 {[%emt 0:00:05]} 5. Bg2 {[%emt 0:00:33]} Nc6 {[%emt 0:01:24]} 6. e3 {[%emt 0:00:49]} Bxd2+ {[%emt 0:04:58]} 7. Qxd2 {[%emt 0:01:33]} e5 {[%emt 0:11:49] was the old line (7...d5). E00: Catalan Bogo-Indian (3 g3 Bb4+).} 8. d5 {[%emt 0:01:16]} Nb8 {[%emt 0:00:30]} 9. d6 {[%emt 0:01:03]} Qxd6 {[%emt 0:01:45] White has an edge.} 10. Qxd6 {[%emt 0:00:50]} cxd6 {[%emt 0:00:09]} 11. Nc3 {[%emt 0:01:13] Against d5} Na6 {[%emt 0:02:17]} 12. O-O-O {[%emt 0:17:21][%mdl 1024] White has compensation.} Ke7 {[%emt 0:00:33] [#]} 13. f4 $146 {[%emt 0:03:29]} ({Predecessor:} 13. Nf3 Nc7 14. Rd2 d5 15. cxd5 d6 16. Nxe5 dxe5 17. d6+ Kd8 18. dxc7+ Kxc7 19. Nb5+ {1-0 (55) Cheparinov,I (2675)-Dimitrov,R (2465) Pleven 2015}) 13... Ng4 {[%emt 0:23:57]} 14. Nd5+ {[%emt 0:09:53]} Kd8 $1 {[%emt 0:00:11]} 15. Nh3 {[%emt 0:03:05][%cal Bg1h3,Bh3f2,Bf2e4][%mdl 32] Against Nf2. aiming for Ng5.} (15. Nf3 $5 {[%cal Rf3g5]}) 15... f6 {[%emt 0:04:20] Prevents Ng5.} 16. Bf3 {[%emt 0:04:40]} h5 {[%emt 0:00:53]} 17. Bxg4 {[%emt 0:02:16]} hxg4 {[%emt 0:00:10]} 18. Nf2 $36 {[%emt 0:00:04][%mdl 2048] Hoping for Ne4. White has the initiative.} Nc7 $1 {[%emt 0:09:45]} 19. Ne4 {[%emt 0:09:30] Pair of Knights!} Ne8 {[%emt 0:04:03]} 20. Ndc3 {[%emt 0:14:43]} b5 {[%emt 0:14:11]} 21. Nxd6 {[%emt 0:06:37]} Nxd6 {[%emt 0:00:08]} 22. Rxd6 {[%emt 0:00:04]} bxc4 {[%emt 0:00:09]} ({Black should play} 22... exf4 $1 $15 23. exf4 bxc4) 23. fxe5 $11 {[%emt 0:00:37]} Rb8 {[%emt 0:16:37]} (23... fxe5 $11 {remains equal.} 24. Rf1 Bb7) 24. exf6 $16 {[%emt 0:01:54] White is more active.} gxf6 {[%emt 0:00:01]} 25. Rxf6 {[%emt 0:01:09]} Rb6 {[%emt 0:00:01]} 26. Rhf1 {[%emt 0:06:12]} ({Better is} 26. Rf2 $16) 26... Rxf6 $11 {[%emt 0:02:10]} 27. Rxf6 {[%emt 0:00:05]} Rxh2 {[%emt 0:01:21][%mdl 4096] Endgame KRB-KRN} 28. Nd5 {[%emt 0:04:12][%cal Rf6f8] [#]} Ke8 {[%emt 0:00:40] Inhibits Rf8+.} 29. Rf4 {[%emt 0:00:32][%csl LRc4,LRg4]} Bb7 {[%emt 0:00:06]} 30. Nf6+ {[%emt 0:03:18]} Ke7 {[%emt 0:00:13]} 31. Nxg4 {[%emt 0:00:25]} Rg2 {[%emt 0:00:05]} 32. Nh6 {[%emt 0:02:50]} c3 {[%emt 0:02:02]} 33. bxc3 {[%emt 0:00:04]} Rxa2 {[%emt 0:00:13]} 34. g4 {[%emt 0:00:52]} Rg2 {[%emt 0:00:56]} 35. Ra4 {[%emt 0:03:17]} a6 {[%emt 0:00:36]} 36. Nf5+ {[%emt 0:00:51]} Ke6 {[%emt 0:00:11]} 37. Rb4 {[%emt 0:01:23]} Bd5 {[%emt 0:01:33]} 38. Nh4 {[%emt 0:00:37]} Rg1+ {[%emt 0:00:29]} 39. Kd2 {[%emt 0:00:06]} a5 {[%emt 0:00:20]} 40. Ra4 {[%emt 0:00:00]} Bc6 {[%emt 0:00:00]} 41. Rxa5 {[%emt 0:00:59]} Rxg4 {[%emt 0:00:33]} 42. Nf5 {[%emt 0:00:05]} Be4 {[%emt 0:06:40]} 43. Nd4+ {[%emt 0:00:52]} Kf7 {[%emt 0:03:22]} 44. c4 {[%emt 0:01:24]} Rg2+ {[%emt 0:00:10]} 45. Kc3 {[%emt 0:00:06]} Rg3 {[%emt 0:00:08]} 46. Nb5 {[%emt 0:00:34] [#] Strongly threatening Nd6+.} Bc6 {[%emt 0:10:32]} 47. Kd3 {[%emt 0:06:04]} Rg4 {[%emt 0:00:01]} 48. Nc3 {[%emt 0:00:25]} Ke6 {[%emt 0:03:43]} 49. Rh5 {[%emt 0:00:43]} Rg1 {[%emt 0:04:33]} 50. Kd4 {[%emt 0:01:01]} Rc1 {[%emt 0:00:29]} 51. Rh6+ {[%emt 0:01:13]} Ke7 {[%emt 0:00:14]} 52. c5 {[%emt 0:02:12]} Kd8 {[%emt 0:00:57]} 53. e4 {[%emt 0:11:16]} Rxc3 {[%emt 0:00:46]} 54. Kxc3 $16 {[%emt 0:01:09][%cal Oh6c6] Intending Rxc6! and mate. White is clearly better.} Bxe4 $14 {[%emt 0:00:01] KR-KB} 55. Kd4 {[%emt 0:01:28]} Bc6 {[%emt 0:00:53]} 56. Ke5 {[%emt 0:02:14][%cal Oh6c6] Rxc6! would kill now.} Kc7 {[%emt 0:00:09]} 57. Rd6 {[%emt 0:00:12]} Bg2 {[%emt 0:01:45]} 58. Kf6 {[%emt 0:00:26]} Bh3 {[%emt 0:01:07]} 59. Ke7 {[%emt 0:01:19]} Bg4 {[%emt 0:00:07]} 60. Rxd7+ $2 {[%emt 0:01:24] Weighted Error Value: White=0.08 (flawless) /Black=0.10 (very precise)} 1/2-1/2